bitfinex/quotes_SOLUSD_20250301
["timestamp","ask_amount","ask_price","bid_price","bid_amount"]
[1740857658144,7.0556,141.73,141.71,2.0]
[1740857659342,7.0556,141.73,141.7,84.3]
[1740857661627,20.0,141.71,141.7,82.3]
[1740857661828,20.0,141.7,141.69,0.063]
[1740857664458,27.0571,141.7,141.69,0.063]
[1740857666543,20.0,141.7,141.69,0.063]
[1740857678866,20.0,141.71,141.69,0.063]
[1740857679180,20.0,141.7,141.69,0.063]
[1740857681369,119.03,141.77,141.7,2.0]
[1740857681551,13.6141,141.76,141.71,2.0]
[1740857681755,132.6438,141.77,141.72,2.0]
[1740857682073,126.0838,141.77,141.72,2.0]
[1740857682255,132.6638,141.77,141.73,2.0]
[1740857684582,20.0,141.74,141.73,2.0]
[1740857685075,20.0,141.74,141.72,2.0]
[1740857685778,132.6638,141.77,141.73,2.0]
[1740857686080,125.61,141.77,141.73,2.0]
[1740857686870,125.61,141.77,141.74,2.0]
[1740857687180,125.61,141.77,141.75,2.0]
[1740857687381,119.03,141.77,141.75,2.0]
[1740857687872,119.03,141.77,141.76,7.0541]
[1740857689260,0.03,141.77,141.76,11.0541]
[1740857694180,0.03,141.77,141.76,229.1541]
[1740857697178,0.03,141.77,141.76,2.0]
[1740857697772,0.03,141.77,141.75,2.063]
[1740857698170,0.03,141.77,141.75,0.063]
[1740857698575,20.0,141.76,141.75,0.063]
[1740857700281,27.0541,141.76,141.75,0.063]
[1740857701286,45.70374886,141.76,141.75,0.063]
[1740857702978,20.0,141.72,141.7,82.3]
[1740857703310,20.0,141.7,141.69,2.063]
[1740857703790,20.0,141.7,141.69,0.063]
[1740857704172,38.64964886,141.7,141.69,0.063]
[1740857704574,18.64964886,141.69,141.64,218.1]
[1740857704796,6.58,141.68,141.64,82.3]
[1740857705100,7.0586,141.67,141.64,82.3]
[1740857706709,20.0,141.65,141.62,220.163]
[1740857706897,20.0,141.64,141.62,82.363]
[1740857713700,27.0601,141.64,141.62,82.363]
[1740857713901,20.0,141.64,141.62,82.363]
[1740857714809,27.0601,141.64,141.62,82.363]
[1740857716279,27.0601,141.64,141.62,0.063]
[1740857723813,6.54,141.63,141.62,0.063]
[1740857724017,13.6006,141.63,141.62,0.063]
[1740857724514,6.54,141.63,141.62,0.063]
[1740857724678,7.0594,141.66,141.62,0.063]
[1740857726690,20.0,141.63,141.62,0.063]
[1740857727725,18.64964886,141.67,141.62,0.063]
[1740857728210,20.0,141.64,141.62,0.063]
[1740857729709,27.0606,141.63,141.62,0.063]
[1740857735313,7.0606,141.63,141.62,0.063]
[1740857743242,24.2941,141.66,141.62,0.063]
[1740857743243,7.0591,141.66,141.62,0.063]
[1740857743423,7.0587,141.67,141.62,2.063]
[1740857743743,7.0587,141.67,141.62,8.2692]
[1740857744436,7.0587,141.67,141.62,90.5692]
[1740857744643,20.0,141.65,141.64,2.0]
[1740857744839,119.04,141.68,141.64,84.3]
[1740857745438,20.0,141.66,141.65,2.0]
[1740857746164,5.64580657,141.7,141.67,2.0]
[1740857746446,5.64580657,141.7,141.69,2.0]
[1740857746447,20.0,141.7,141.69,2.0]
[1740857746615,13.5756,141.73,141.69,2.0]
[1740857746815,13.5756,141.73,141.69,84.3]
[1740857747042,20.0,141.7,141.69,84.3]
[1740857747444,19.12978875,141.73,141.69,84.3]
[1740857747625,13.5756,141.73,141.69,84.3]
[1740857748540,13.5756,141.73,141.7,2.0]
[1740857748836,12.57149743,141.74,141.7,2.0]
[1740857749547,20.0,141.72,141.71,2.0]
[1740857750953,27.0561,141.72,141.7,82.3]
[1740857751147,27.0561,141.72,141.68,84.3]
[1740857751523,27.0561,141.72,141.67,2.0]
[1740857751722,20.0,141.7,141.67,2.0]
[1740857751954,20.0,141.7,141.68,2.0]
[1740857752122,7.0558,141.73,141.7,2.0]
[1740857752321,7.0558,141.73,141.7,84.3]
[1740857752622,20.0,141.71,141.7,84.3]
[1740857752843,20.0,141.71,141.7,82.3]
[1740857753031,27.0566,141.71,141.7,82.3]
[1740857755348,63.34784886,141.71,141.66,83.9643]
[1740857755943,63.34784886,141.71,141.66,85.9643]
[1740857756531,27.0566,141.71,141.67,2.0]
[1740857758957,27.0566,141.71,141.66,85.9643]
[1740857759149,44.6982,141.71,141.66,85.9643]
[1740857759353,18.64964886,141.7,141.66,2.0]
[1740857759525,20.0,141.65,141.64,82.3]
[1740857760338,38.64964886,141.65,141.62,0.063]
[1740857760561,6.52,141.64,141.62,0.063]
[1740857760859,7.0606,141.63,141.62,0.063]
[1740857763567,6.52,141.64,141.62,2.063]
[1740857764170,13.5802,141.64,141.62,0.063]
[1740857764361,13.5802,141.64,141.62,2.063]
[1740857764748,6.52,141.64,141.62,2.063]
[1740857764947,6.52,141.64,141.62,84.363]
[1740857766239,20.0,141.63,141.62,84.363]
[1740857766437,20.0,141.63,141.62,0.063]
[1740857768272,27.0606,141.63,141.62,0.063]
[1740857768770,45.71024886,141.63,141.62,0.0001]
[1740857769869,18.64964886,141.62,141.61,0.0001]
[1740857770164,101.64964886,141.62,141.61,0.0001]
[1740857770542,18.64964886,141.62,141.61,0.0001]
[1740857770744,18.64964886,141.62,141.55,0.063]
[1740857770745,40.64964886,141.59,141.55,0.063]
[1740857770941,38.64964886,141.56,141.55,0.063]
[1740857771463,45.71374886,141.56,141.55,0.063]
[1740857772673,20.0,141.56,141.55,0.063]
[1740857773438,20.0,141.56,141.55,2.063]
[1740857773644,125.64,141.59,141.56,2.0]
[1740857773853,20.0,141.57,141.56,2.0]
[1740857774059,125.64,141.59,141.57,2.0]
[1740857774291,125.64,141.59,141.58,2.0]
[1740857774292,119.08,141.59,141.58,2.0]
[1740857774868,6.56,141.63,141.59,2.0]
[1740857775063,6.56,141.63,141.62,2.0]
[1740857775264,0.03,141.66,141.62,84.3]
[1740857775480,7.0598,141.65,141.62,84.3]
[1740857775651,20.0,141.63,141.62,84.3]
[1740857776169,7.0891,141.66,141.62,84.3]
[1740857778284,20.0,141.63,141.62,82.3]
[1740857779473,20.0,141.63,141.62,82.363]
[1740857780583,27.0606,141.63,141.62,82.363]
[1740857782266,20.0,141.63,141.62,84.363]
[1740857783859,20.0,141.63,141.62,82.363]
[1740857783860,27.0606,141.63,141.62,82.363]
[1740857785181,20.0,141.63,141.62,82.363]
[1740857785552,27.0606,141.63,141.62,82.363]
[1740857785757,17.6778,141.66,141.62,82.363]
[1740857785976,20.0,141.63,141.62,82.363]
[1740857790782,27.0606,141.63,141.62,82.363]
[1740857791887,27.0606,141.63,141.62,0.063]
[1740857792062,45.71024886,141.63,141.58,82.3]
[1740857792262,20.0,141.59,141.58,82.3]
[1740857792877,20.0,141.57,141.55,82.363]
[1740857794168,7.0641,141.56,141.55,82.363]
[1740857794577,20.0,141.57,141.55,82.363]
[1740857795292,20.0,141.57,141.56,2.0]
[1740857795664,20.0,141.57,141.55,84.363]
[1740857795979,20.0,141.57,141.56,2.0]
[1740857796176,20.0,141.57,141.55,84.363]
[1740857796487,27.063,141.59,141.56,2.0]
[1740857797193,27.063,141.59,141.55,84.363]
[1740857797486,27.063,141.59,141.56,2.0]
[1740857797690,20.0,141.57,141.56,2.0]
[1740857798065,13.5813,141.62,141.59,2.0]
[1740857798266,13.5813,141.62,141.59,84.3]
[1740857798466,20.0,141.6,141.59,84.3]
[1740857798895,6.52,141.62,141.59,84.3]
[1740857799089,6.52,141.62,141.59,91.3625]
[1740857799388,20.0,141.6,141.59,84.3]
[1740857799610,20.0,141.6,141.59,82.3]
[1740857800295,20.0,141.6,141.59,84.3]
[1740857801267,20.0,141.6,141.59,91.3626]
[1740857801466,20.0,141.6,141.59,84.3]
[1740857801791,27.0621,141.6,141.59,82.3]
[1740857802989,20.0,141.6,141.59,82.3]
[1740857803389,20.0,141.6,141.59,84.3]
[1740857803583,20.0,141.6,141.59,82.3]
[1740857803893,20.0,141.6,141.59,84.3]
[1740857805090,20.0,141.6,141.59,82.3]
[1740857805281,27.0621,141.6,141.57,82.3]
[1740857805466,20.0,141.59,141.55,85.9095]
[1740857805671,20.0,141.58,141.55,82.363]
[1740857807295,27.0636,141.58,141.55,82.363]
[1740857808001,27.0636,141.58,141.55,0.063]
[1740857808303,6.52,141.57,141.55,0.063]
[1740857809096,18.64964886,141.56,141.55,0.063]
[1740857809998,25.71374886,141.56,141.55,0.063]
[1740857815697,25.71374886,141.56,141.51,0.063]
[1740857815901,18.64964886,141.52,141.51,0.063]
[1740857816088,25.14964886,141.52,141.51,0.063]
[1740857816676,32.21574886,141.52,141.51,0.063]
[1740857823315,6.5,141.52,141.51,0.063]
[1740857823485,27.0658,141.53,141.51,0.063]
[1740857824105,32.67707433,141.53,141.51,0.063]
[1740857824285,27.0658,141.53,141.51,0.063]
[1740857832518,25.71574886,141.52,141.48,2.0]
[1740857832815,20.0,141.49,141.47,0.063]
[1740857833131,18.64964886,141.48,141.47,0.063]
[1740857833312,18.64964886,141.48,141.46,0.063]
[1740857834693,7.0686,141.47,141.46,0.063]
[1740857835001,25.71824886,141.47,141.46,0.063]
[1740857835197,38.64964886,141.44,141.43,0.063]
[1740857835512,45.20964886,141.44,141.43,0.063]
[1740857836915,52.27974886,141.44,141.43,0.063]
[1740857838801,187.27974886,141.44,141.43,0.0001]
[1740857838996,111.91304886,141.44,141.43,0.0001]
[1740857841017,33.35304886,141.44,141.43,0.0001]
[1740857841219,32.27974886,141.44,141.43,0.0001]
[1740857842710,82.27974886,141.44,141.43,0.0001]
[1740857843399,84.27974886,141.44,141.43,0.0001]
[1740857844404,82.27974886,141.44,141.43,0.0001]
[1740857844608,84.27974886,141.44,141.43,0.0001]
[1740857845500,50.0,141.33,141.32,0.03]
[1740857845801,6.56,141.33,141.28,1.6813]
[1740857846116,20.0,141.29,141.28,1.6813]
[1740857848425,27.0776,141.29,141.28,1.6813]
[1740857850205,17.6918,141.31,141.28,1.6813]
[1740857851425,7.0771,141.3,141.28,1.6813]
[1740857852129,50.0,141.28,141.25,0.03]
[1740857852347,68.64964886,141.26,141.25,0.03]
[1740857853301,68.64964886,141.26,141.23,1.6322]
[1740857853508,68.64964886,141.26,141.22,82.33]
[1740857854023,7.0796,141.25,141.22,82.33]
[1740857854206,6.54,141.27,141.22,82.33]
[1740857854413,7.0793,141.26,141.22,82.33]
[1740857855342,6.54,141.27,141.22,218.13]
[1740857855508,50.0,141.26,141.22,218.13]
[1740857856115,25.72924886,141.25,141.22,218.13]
[1740857856713,20.0,141.23,141.22,218.13]
[1740857856918,20.0,141.23,141.22,82.33]
[1740857857325,25.72924886,141.25,141.22,82.33]
[1740857857516,20.0,141.23,141.22,82.33]
[1740857858444,7.0791,141.26,141.22,82.33]
[1740857858616,7.0791,141.26,141.22,218.13]
[1740857859538,57.0791,141.26,141.22,218.13]
[1740857862137,57.0791,141.26,141.14,8.54]
[1740857862138,50.0,141.13,141.1,10.82868972]
[1740857862338,2.0,141.17,141.1,10.82868972]
[1740857862339,50.0,141.16,141.1,10.82868972]
[1740857862544,6.7,141.17,141.1,146.62868972]
[1740857862727,50.0,141.22,141.13,2.0]
[1740857862921,50.0,141.24,141.14,9.6787]
[1740857863535,50.0,141.24,141.14,7.6787]
[1740857864022,7.0806,141.23,141.14,7.6787]
[1740857864938,68.64964886,141.22,141.14,7.6787]
[1740857865636,20.0,141.19,141.14,7.6787]
[1740857866010,7.0831,141.18,141.14,7.6787]
[1740857867044,7.0831,141.18,141.14,89.9787]
[1740857867424,20.0,141.17,141.14,89.9787]
[1740857867725,20.0,141.17,141.14,83.8741]
[1740857869350,50.0,141.18,141.14,1.5741]
[1740857870436,24.7927,141.17,141.14,1.5741]
[1740857873226,20.0,141.15,141.14,1.5741]
[1740857873642,27.0846,141.15,141.14,1.5741]
[1740857874851,27.0846,141.15,141.13,0.03]
[1740857876021,7.0846,141.15,141.13,82.33]
[1740857877847,92.1331,141.2,141.13,83.9052]
[1740857878146,24.7892,141.19,141.13,83.9052]
[1740857880144,24.7892,141.19,141.13,219.7052]
[1740857882043,50.0,141.22,141.13,219.7052]
[1740857882246,24.7857,141.21,141.13,219.7052]
[1740857885039,24.8487,141.21,141.13,219.7052]
[1740857888534,24.8487,141.21,141.13,228.7908]
[1740857888839,7.1446,141.21,141.13,228.7908]
[1740857889832,7.1446,141.21,141.13,219.7052]
[1740857890130,24.8487,141.21,141.13,219.7052]
[1740857892453,7.1446,141.21,141.13,226.7908]
[1740857893935,24.8487,141.21,141.13,226.7908]
[1740857906264,28.40642053,141.21,141.13,226.7908]
[1740857908366,24.8487,141.21,141.13,226.7908]
[1740857909746,24.8487,141.21,141.13,219.7052]
[1740857911368,28.43319089,141.21,141.13,219.7052]
[1740857912062,24.7892,141.19,141.13,83.9052]
[1740857913359,68.64964886,141.18,141.13,83.9052]
[1740857913560,75.30964886,141.18,141.13,83.9052]
[1740857913748,75.30964886,141.18,141.13,82.33]
[1740857914169,24.7927,141.17,141.13,0.03]
[1740857914467,68.64964886,141.16,141.13,0.03]
[1740857915870,72.150053,141.16,141.13,0.03]
[1740857916072,20.0,141.14,141.13,0.03]
[1740857916252,44.798,141.14,141.1,83.8295]
[1740857916667,94.798,141.14,141.09,6.1885]
[1740857916885,18.64964886,141.13,141.09,6.1885]
[1740857917248,25.32964886,141.13,141.08,218.1]
[1740857917946,20.0,141.09,141.07,0.03]
[1740857918362,7.0881,141.08,141.07,0.03]
[1740857919357,74.8085,141.08,141.02,82.3]
[1740857919771,57.0881,141.08,141.02,82.3]
[1740857920075,7.0881,141.08,141.02,82.3]
[1740857922670,57.0881,141.08,141.02,82.3]
[1740857929182,57.0881,141.08,141.02,89.391]
[1740857929377,57.0881,141.08,141.02,82.3]
[1740857931764,57.0881,141.08,141.02,89.391]
[1740857932280,57.0881,141.08,141.02,82.3]
[1740857941285,57.0881,141.08,141.02,89.3911]
[1740857941990,57.0881,141.08,141.02,82.3]
[1740857942198,63.6881,141.08,141.02,82.3]
[1740857944003,63.6881,141.08,141.02,82.33]
[1740857947699,63.6881,141.08,141.02,89.4211]
[1740857949012,63.6881,141.08,141.02,82.33]
[1740857950204,50.0,141.06,141.02,0.03]
[1740857950505,18.64964886,141.05,141.02,0.03]
[1740857951707,7.0901,141.04,141.02,0.03]
[1740857952383,7.0901,141.04,140.98,135.83]
[1740857952384,18.64964886,141.03,140.98,82.33]
[1740857952912,25.20964886,141.03,140.98,82.33]
[1740857954017,20.0,141.0,140.98,82.33]
[1740857954297,20.0,141.0,140.98,0.03]
[1740857955689,20.0,140.99,140.98,0.03]
[1740857956007,38.64964886,140.99,140.98,0.03]
[1740857956199,45.74234886,140.99,140.98,0.03]
[1740857957401,95.74234886,140.99,140.98,0.03]
[1740857957610,18.64964886,140.98,140.94,82.3]
[1740857958408,7.0937,140.97,140.94,82.3]
[1740857960508,6.54,140.98,140.94,82.3]
[1740857961302,70.0,140.99,140.94,89.3951]
[1740857961495,20.0,140.99,140.94,89.3951]
[1740857961701,3.47818126,141.02,140.95,1.5307]
[1740857961995,18.64964886,141.01,140.95,83.8307]
[1740857962404,6.54,141.03,140.96,6.4932]
[1740857962585,18.64964886,141.02,140.97,7.0937]
[1740857963600,6.54,141.03,140.97,7.0937]
[1740857963807,6.54,141.03,140.97,24.8279]
[1740857966010,18.64964886,141.04,140.97,24.8279]
[1740857967507,18.64964886,141.04,140.97,242.9279]
[1740857968117,18.64964886,141.04,140.97,242.9579]
[1740857970295,25.73984886,141.04,140.97,242.9579]
[1740857974010,25.73984886,141.04,140.97,225.2237]
[1740857977423,93.46524886,141.04,140.97,218.13]
[1740857977626,18.64964886,141.01,140.97,218.13]
[1740857978122,25.12964886,141.01,140.97,218.13]
[1740857979026,18.64964886,140.99,140.97,0.03]
[1740857979225,7.0932,140.98,140.97,0.03]
[1740857983232,75.74284886,140.98,140.97,0.03]
[1740857987240,50.0,140.96,140.94,0.03]
[1740857987538,18.64964886,140.95,140.94,0.03]
[1740857987912,18.64964886,140.92,140.9,82.3]
[1740857988112,18.64964886,140.92,140.88,6.5203]
[1740857990345,25.74584886,140.92,140.88,6.5203]
[1740857992540,25.74584886,140.92,140.88,6.5503]
[1740857994413,25.74584886,140.92,140.88,0.03]
[1740857996131,7.0952,140.94,140.88,0.03]
[1740857996448,7.0942,140.96,140.88,0.03]
[1740857996624,18.64964886,140.95,140.88,218.13]
[1740857997938,7.0952,140.94,140.88,225.228]
[1740857999641,18.64964886,140.93,140.88,218.13]
[1740857999825,18.64964886,140.93,140.88,82.33]
[1740858001851,7.0962,140.92,140.88,82.33]
[1740858002452,25.74554886,140.93,140.88,89.4282]
[1740858002653,57.0951,140.95,140.88,89.4282]
[1740858003150,57.0951,140.95,140.88,225.2282]
[1740858003551,20.0,140.91,140.88,0.03]
[1740858003845,25.74634886,140.91,140.88,0.03]
[1740858005236,29.23003555,140.91,140.88,0.03]
[1740858007550,46.97183555,140.91,140.88,0.03]
[1740858008051,20.0,140.89,140.88,0.03]
[1740858009243,38.64964886,140.89,140.88,0.03]
[1740858009951,45.74734886,140.89,140.88,0.03]
[1740858010453,18.64964886,140.88,140.85,72.35]
[1740858010652,68.64964886,140.88,140.83,0.03]
[1740858012168,7.0987,140.87,140.83,0.03]
[1740858013162,39.2819,140.89,140.83,1.5605]
[1740858013163,20.0,140.89,140.83,1.5605]
[1740858013358,20.0,140.89,140.84,6.1608]
[1740858014967,20.0,140.89,140.84,78.5108]
[1740858015261,27.0977,140.89,140.84,78.5108]
[1740858015560,27.0977,140.89,140.84,78.5408]
[1740858016060,27.0977,140.89,140.84,85.641]
[1740858017060,20.0,140.89,140.84,85.641]
[1740858020951,20.0,140.89,140.84,221.441]
[1740858023166,7.0969,140.91,140.84,221.441]
[1740858023771,18.64964886,140.9,140.84,221.441]
[1740858025072,25.74704886,140.9,140.84,221.441]
[1740858026772,25.74704886,140.9,140.84,85.641]
[1740858027768,25.81004886,140.9,140.84,85.641]
[1740858032278,0.063,140.9,140.84,85.641]
[1740858032654,0.063,140.9,140.84,221.441]
[1740858032975,0.063,140.9,140.87,20.0]
[1740858033159,0.063,140.9,140.88,1.5481]
[1740858034988,0.063,140.9,140.89,7.0977]
[1740858037485,0.063,140.9,140.88,1.5481]
[1740858037662,0.063,140.9,140.87,208.15]
[1740858038782,0.063,140.9,140.87,72.35]
[1740858039888,0.063,140.9,140.87,79.4487]
[1740858041071,0.063,140.9,140.87,97.1955]
[1740858041689,0.063,140.9,140.87,99.1955]
[1740858042592,0.063,140.9,140.87,101.1955]
[1740858044684,0.063,140.9,140.87,236.9955]
[1740858044991,0.063,140.9,140.87,234.9955]
[1740858045177,0.063,140.9,140.87,215.2487]
[1740858050490,0.063,140.9,140.87,215.2787]
[1740858053392,0.063,140.9,140.87,233.0255]
[1740858053578,0.063,140.9,140.87,235.0255]
[1740858060810,0.063,140.9,140.87,233.0255]
[1740858061016,0.063,140.9,140.87,235.0255]
[1740858062909,0.063,140.9,140.89,4.0]
[1740858063209,0.063,140.9,140.89,25.4]
[1740858063414,0.063,140.9,140.89,4.0]
[1740858064417,0.063,140.9,140.89,5.5534]
[1740858065218,0.0001,140.9,140.89,260.85074886]
[1740858072420,0.0001,140.9,140.89,215.2477]
[1740858072805,0.0001,140.9,140.89,72.35]
[1740858074104,0.0001,140.9,140.89,79.4477]
[1740858077332,0.0001,140.9,140.89,215.2477]
[1740858079629,0.0001,140.9,140.89,208.15]
[1740858080410,1.6542,140.9,140.89,208.15]
[1740858083309,1.6542,140.9,140.89,72.35]
[1740858085221,8.7514,140.9,140.89,72.35]
[1740858086036,1.6542,140.9,140.89,72.35]
[1740858088531,8.7514,140.9,140.89,72.35]
[1740858088832,0.0001,140.9,140.89,72.35]
[1740858096746,0.0001,140.9,140.89,219.2477]
[1740858100764,0.0001,140.9,140.89,237.89734886]
[1740858108156,0.0001,140.9,140.89,259.29734886]
[1740858109151,0.0001,140.9,140.89,237.89734886]
[1740858109958,0.0001,140.9,140.89,219.2477]
[1740858111154,0.0001,140.9,140.89,215.2477]
[1740858111861,0.0001,140.9,140.89,217.2477]
[1740858112856,0.0001,140.9,140.89,219.2477]
[1740858113356,0.0001,140.9,140.89,217.2477]
[1740858113655,0.0001,140.9,140.89,219.2477]
[1740858114048,0.0001,140.9,140.89,217.2477]
[1740858114550,0.0001,140.9,140.89,215.2477]
[1740858116247,0.0001,140.9,140.89,217.2477]
[1740858117160,0.0001,140.9,140.89,215.2477]
[1740858117346,0.0001,140.9,140.89,219.2477]
[1740858118567,0.0001,140.9,140.89,215.2477]
[1740858120248,0.0001,140.9,140.89,217.2477]
[1740858120865,0.0001,140.9,140.89,215.2477]
[1740858121353,0.0001,140.9,140.89,217.2477]
[1740858123165,0.0001,140.9,140.89,219.2477]
[1740858128250,0.0001,140.9,140.89,237.89734886]
[1740858128469,0.0001,140.9,140.89,243.99704886]
[1740858128771,0.0001,140.9,140.89,265.39704886]
[1740858134272,0.0001,140.9,140.89,268.89916087]
[1740858134481,0.063,140.95,140.92,22.0]
[1740858134680,0.063,140.95,140.92,230.15]
[1740858136077,0.063,140.95,140.93,7.0957]
[1740858139872,0.063,140.95,140.93,215.2457]
[1740858152488,0.063,140.95,140.93,208.15]
[1740858153001,0.063,140.95,140.93,215.2455]
[1740858158879,0.063,140.95,140.93,219.2455]
[1740858159082,0.063,140.95,140.93,225.6255]
[1740858160311,0.063,140.95,140.94,2.0]
[1740858160606,15.1354,141.04,140.95,4.0]
[1740858160894,15.1354,141.04,140.96,24.8297]
[1740858161196,8.7554,141.04,140.96,24.8297]
[1740858165296,7.1534,141.04,140.96,232.9797]
[1740858165487,0.063,141.04,141.01,2.0]
[1740858165688,0.063,141.04,141.01,210.15]
[1740858166000,0.063,141.04,141.01,212.15]
[1740858167585,0.063,141.04,141.02,7.0911]
[1740858169385,0.063,141.04,141.02,9.0911]
[1740858169586,0.063,141.04,141.02,217.2411]
[1740858170198,0.063,141.04,141.03,2.0]
[1740858170600,0.063,141.04,141.03,9.0906]
[1740858172123,0.063,141.04,141.03,7.0906]
[1740858175507,0.063,141.04,141.03,215.2406]
[1740858180190,0.063,141.04,141.03,217.2406]
[1740858182917,0.063,141.04,141.03,219.2406]
[1740858183507,0.063,141.05,141.04,2.0]
[1740858183820,0.063,141.05,141.04,210.15]
[1740858184113,0.063,141.05,141.04,217.2401]
[1740858185918,0.063,141.09,141.04,217.2401]
[1740858186119,0.063,141.09,141.05,6.36]
[1740858187021,0.063,141.09,141.06,24.812]
[1740858190118,0.063,141.09,141.06,236.962]
[1740858193926,0.063,141.09,141.06,238.59400564]
[1740858194121,0.063,141.09,141.06,215.2391]
[1740858195527,0.063,141.09,141.06,234.962]
[1740858195733,0.063,141.09,141.07,2.0]
[1740858195927,0.063,141.09,141.07,210.15]
[1740858197734,0.063,141.09,141.08,7.0881]
[1740858197921,0.063,141.09,141.08,215.2381]
[1740858199830,0.063,141.1,141.09,2.0]
[1740858200020,0.0001,141.1,141.09,2.0]
[1740858200335,0.0001,141.1,141.09,20.64964886]
[1740858201611,0.0001,141.1,141.08,217.2381]
[1740858202016,0.063,141.09,141.08,217.2381]
[1740858203137,0.063,141.09,141.08,219.2381]
[1740858204247,18.64964886,141.18,141.08,236.9585]
[1740858204920,18.64964886,141.18,141.08,234.9585]
[1740858205120,18.64964886,141.18,141.08,236.9585]
[1740858205636,25.73274886,141.18,141.08,236.9585]
[1740858207336,27.26604886,141.18,141.08,236.9585]
[1740858210322,33.62604886,141.18,141.08,236.9585]
[1740858211224,14.9764,141.18,141.09,3.628]
[1740858211545,7.8933,141.18,141.09,3.628]
[1740858211928,14.9764,141.18,141.09,3.628]
[1740858213039,14.9764,141.18,141.1,26.805]
[1740858213246,6.36,141.18,141.1,26.805]
[1740858213639,7.1458,141.19,141.11,8.0403]
[1740858213839,7.1458,141.19,141.11,216.1903]
[1740858214258,20.0,141.18,141.12,7.0861]
[1740858214450,0.063,141.19,141.12,7.0861]
[1740858217164,0.063,141.19,141.12,215.2361]
[1740858225439,0.063,141.19,141.13,8.5952]
[1740858227257,0.063,141.19,141.13,216.7452]
[1740858230542,0.063,141.19,141.15,7.0846]
[1740858230854,0.063,141.19,141.15,79.4346]
[1740858233165,68.71264886,141.19,141.15,72.35]
[1740858233361,6.36,141.18,141.15,72.35]
[1740858233562,50.0,141.17,141.11,72.35]
[1740858233964,50.0,141.17,141.11,79.4366]
[1740858234169,18.64964886,141.17,141.11,79.4366]
[1740858234874,7.0836,141.17,141.11,79.4366]
[1740858235079,7.0836,141.17,141.11,72.35]
[1740858236455,7.0836,141.17,141.11,79.4365]
[1740858236774,7.0836,141.17,141.11,72.35]
[1740858237352,7.0836,141.17,141.11,79.4364]
[1740858240677,6.36,141.18,141.12,6.3463]
[1740858240855,13.4432,141.18,141.12,6.3463]
[1740858241579,7.1458,141.19,141.12,6.3463]
[1740858242671,7.1458,141.19,141.13,7.0856]
[1740858243577,7.1458,141.19,141.12,13.4323]
[1740858243969,7.1458,141.19,141.12,221.5823]
[1740858244975,0.063,141.19,141.12,221.5823]
[1740858251988,0.063,141.19,141.13,1.5204]
[1740858252160,0.063,141.19,141.14,7.0851]